2CCN - Level 2 Cost Centre Name,,9CCN - Level 9 Cost Centre Name,9CCC - Level 9 Cost Centre Code,9AN - Level 9 Account Name,9AC - Level 9 Account Code,Date posted,Date of transaction,Merchant Name,Merchant City,Originating Account Name,Originating Account Number,MCC/SIC Code,MCC Description,Original Amount,Currency,Conversion Rate,Billed Amount,Debit Credit,Reference Number,Statement Cycle,Account Name
Gloucester City Council,23UE,MANAGING DIRECTOR,RE100,CONFERENCE/MEETING EXPENSES,5510,2016-04-05,2016-04-04,RAMADA ENCORE NEWCASTLE G,GATESHEAD,REDACTED,471*********1967,7011,LODGING  HOTELS  MOTELS  RESORTS,29.85,Pound Sterling (826),1,29.85,Debit,74463656095910957283781,2016-05-02,GLOUCESTER CC
Gloucester City Council,23UE,MANAGING DIRECTOR,RE100,CONFERENCE/MEETING EXPENSES,5510,2016-04-26,2016-04-25,WWW.SOLACE.ORG.UK,PONTEFRACT,REDACTED,471*********1967,8699,MEMBERSHIP ORGANIZATIONS NOT ELSEWHERE CLASSIFIED,594,Pound Sterling (826),1,594,Debit,74085326117465000133964,2016-05-02,GLOUCESTER CC
Gloucester City Council,23UE,TOURISM MARKETING,LT100,OPERATIONAL EQUIPMENT <5000,5012,2016-04-12,2016-04-11,WWW.THEBARCODEWAREHOUS,INTERNET,REDACTED,471*********4015,5722,HOUSEHOLD APPLIANCE STORES,103.32,Pound Sterling (826),1,103.32,Debit,74745096103080113427703,2016-05-02,GLOUCESTER CC
Gloucester City Council,23UE,CITY MUSEUM AND ART GALLERY,LM200,OPERATIONAL EQUIPMENT <5000,5012,2016-04-13,2016-04-12,THE BARCODE WAREHOUSE,NEWARK,REDACTED,471*********4015,5722,HOUSEHOLD APPLIANCE STORES,36.04,Pound Sterling (826),1,36.04,Debit,74745096104090073731464,2016-05-02,GLOUCESTER CC
Gloucester City Council,23UE,FOLK MUSEUM,LM210,OPERATIONAL EQUIPMENT <5000,5012,2016-04-13,2016-04-12,THE BARCODE WAREHOUSE,NEWARK,REDACTED,471*********4015,5722,HOUSEHOLD APPLIANCE STORES,36.03,Pound Sterling (826),1,36.03,Debit,74745096104090073731464,2016-05-02,GLOUCESTER CC
Gloucester City Council,23UE,TOURISM MARKETING,LT100,OPERATIONAL EQUIPMENT <5000,5012,2016-04-29,2016-04-28,ROBERT HALL BUSINESS EQUI,GLOUCESTER,REDACTED,471*********4015,5943,STATIONERY  OFFICE AND SCHOOL SUPPLY STO,110.18,Pound Sterling (826),1,110.18,Debit,74463656119891207361639,2016-05-02,GLOUCESTER CC
Gloucester City Council,23UE,REGISTRATION OF ELECTORS,RS400,FEES FOR SERVICES RECEIVED,5350,2016-04-15,2016-04-14,PAYPAL *CUSTOMCARD,35314369001,REDACTED,471*********1715,7399,BUSINESS SERVICES NOT ELSEWHERE CLASSIFIED,209,Pound Sterling (826),1,209,Debit,74998766105614688935193,2016-05-02,GLOUCESTER CC
Gloucester City Council,23UE,REGISTRATION OF ELECTORS,RS400,FEES FOR SERVICES RECEIVED,5350,2016-04-29,2016-04-28,WWW.SHAWS.CO.UK,DARTFORD,REDACTED,471*********1715,2741,MISCELLANEOUS PUBLISHING & PRINTING,41.22,Pound Sterling (826),1,41.22,Debit,74056576120003000094876,2016-05-02,GLOUCESTER CC
Gloucester City Council,23UE,REGISTRATION OF ELECTORS,RS400,FEES FOR SERVICES RECEIVED,5350,2016-05-02,2016-04-29,LIDL UK,GLOUCESTER,REDACTED,471*********1715,5411,GROCERY STORES  SUPERMARKETS,5.96,Pound Sterling (826),1,5.96,Debit,74698086121020098864716,2016-05-02,GLOUCESTER CC
Gloucester City Council,23UE,REGISTRATION OF ELECTORS,RS400,FEES FOR SERVICES RECEIVED,5350,2016-05-02,2016-04-29,STAPLES UK,GLOUCESTER 05,REDACTED,471*********1715,5943,STATIONERY  OFFICE AND SCHOOL SUPPLY STO,120.41,Pound Sterling (826),1,120.41,Debit,74579156121000370666497,2016-05-02,GLOUCESTER CC
Gloucester City Council,23UE,HOMELESSNESS,CH120,BOARD AND LODGING,5515,2016-04-04,2016-04-01,ROOMSBOOKED LTD,CHELTENHAM,REDACTED,471*********1443,7011,LODGING  HOTELS  MOTELS  RESORTS,227.05,Pound Sterling (826),1,227.05,Debit,74678586093020172018152,2016-05-02,GLOUCESTER CC
Gloucester City Council,23UE,HOMELESSNESS,CH120,BOARD AND LODGING,5515,2016-04-04,2016-04-01,TRAVELODGE WEBSITE,RESERVATION,REDACTED,471*********1443,3615,TRAVELODGE,176,Pound Sterling (826),1,176,Debit,74424716092298191110074,2016-05-02,GLOUCESTER CC
Gloucester City Council,23UE,HOMELESSNESS,CH120,BOARD AND LODGING,5515,2016-04-04,2016-04-01,CENTRAL HOTEL,CHELTENHAM,REDACTED,471*********1443,7011,LODGING  HOTELS  MOTELS  RESORTS,-227.05,Pound Sterling (826),1,-227.05,Credit,74678586094020407785103,2016-05-02,GLOUCESTER CC
Gloucester City Council,23UE,HOMELESSNESS,CH120,BOARD AND LODGING,5515,2016-04-06,2016-04-05,TRAVELODGE WEBSITE,RESERVATION,REDACTED,471*********1443,3615,TRAVELODGE,335,Pound Sterling (826),1,335,Debit,74424716096298138800254,2016-05-02,GLOUCESTER CC
Gloucester City Council,23UE,HOMELESSNESS,CH120,BOARD AND LODGING,5515,2016-04-11,2016-04-08,TRAVELODGE WEBSITE,RESERVATION,REDACTED,471*********1443,3615,TRAVELODGE,152,Pound Sterling (826),1,152,Debit,74424716099298175402052,2016-05-02,GLOUCESTER CC
Gloucester City Council,23UE,HOMELESSNESS,CH120,BOARD AND LODGING,5515,2016-04-13,2016-04-12,TRAVELODGE WEBSITE,RESERVATION,REDACTED,471*********1443,3615,TRAVELODGE,118,Pound Sterling (826),1,118,Debit,74424716103298121869713,2016-05-02,GLOUCESTER CC
Gloucester City Council,23UE,HOMELESSNESS,CH120,BOARD AND LODGING,5515,2016-04-15,2016-04-14,BELLS HOTEL,COLEFORD,REDACTED,471*********1443,7011,LODGING  HOTELS  MOTELS  RESORTS,64,Pound Sterling (826),1,64,Debit,74056576105523002878835,2016-05-02,GLOUCESTER CC
Gloucester City Council,23UE,HOMELESSNESS,CH120,BOARD AND LODGING,5515,2016-04-15,2016-04-14,TRAVELODGE WEBSITE,RESERVATION,REDACTED,471*********1443,3615,TRAVELODGE,236,Pound Sterling (826),1,236,Debit,74424716105298143303830,2016-05-02,GLOUCESTER CC
Gloucester City Council,23UE,HOMELESSNESS,CH120,BOARD AND LODGING,5515,2016-04-18,2016-04-15,TRAVELODGE WEBSITE,RESERVATION,REDACTED,471*********1443,3615,TRAVELODGE,235,Pound Sterling (826),1,235,Debit,74424716106298153348674,2016-05-02,GLOUCESTER CC
Gloucester City Council,23UE,HOMELESSNESS,CH120,BOARD AND LODGING,5515,2016-04-19,2016-04-18,TRAVELODGE WEBSITE,RESERVATION,REDACTED,471*********1443,3615,TRAVELODGE,64,Pound Sterling (826),1,64,Debit,74424716109298185006578,2016-05-02,GLOUCESTER CC
Gloucester City Council,23UE,HOMELESSNESS,CH120,BOARD AND LODGING,5515,2016-04-19,2016-04-18,TRAVELODGE WEBSITE,RESERVATION,REDACTED,471*********1443,3615,TRAVELODGE,64,Pound Sterling (826),1,64,Debit,74424716109298185092669,2016-05-02,GLOUCESTER CC
Gloucester City Council,23UE,HOMELESSNESS,CH120,BOARD AND LODGING,5515,2016-04-20,2016-04-19,TRAVELODGE WEBSITE,RESERVATION,REDACTED,471*********1443,3615,TRAVELODGE,327,Pound Sterling (826),1,327,Debit,74424716110298194994738,2016-05-02,GLOUCESTER CC
Gloucester City Council,23UE,HOMELESSNESS,CH120,BOARD AND LODGING,5515,2016-04-21,2016-04-20,TRAVELODGE WEBSITE,RESERVATION,REDACTED,471*********1443,3615,TRAVELODGE,338,Pound Sterling (826),1,338,Debit,74424716111298105862429,2016-05-02,GLOUCESTER CC
Gloucester City Council,23UE,HOMELESSNESS,CH120,BOARD AND LODGING,5515,2016-04-22,2016-04-21,TRAVELODGE WEBSITE,RESERVATION,REDACTED,471*********1443,3615,TRAVELODGE,44,Pound Sterling (826),1,44,Debit,74424716112298117115120,2016-05-02,GLOUCESTER CC
Gloucester City Council,23UE,HOMELESSNESS,CH120,BOARD AND LODGING,5515,2016-04-25,2016-04-22,TRAVELODGE WEBSITE,RESERVATION,REDACTED,471*********1443,3615,TRAVELODGE,213,Pound Sterling (826),1,213,Debit,74424716113298129297816,2016-05-02,GLOUCESTER CC
Gloucester City Council,23UE,HOMELESSNESS,CH120,BOARD AND LODGING,5515,2016-04-27,2016-04-26,TRAVELODGE WEBSITE,RESERVATION,REDACTED,471*********1443,3615,TRAVELODGE,381,Pound Sterling (826),1,381,Debit,74424716117298177963935,2016-05-02,GLOUCESTER CC
Gloucester City Council,23UE,HOMELESSNESS,CH120,BOARD AND LODGING,5515,2016-04-27,2016-04-26,TRAVELODGE WEBSITE,RESERVATION,REDACTED,471*********1443,3615,TRAVELODGE,74,Pound Sterling (826),1,74,Debit,74424716117298177989278,2016-05-02,GLOUCESTER CC
Gloucester City Council,23UE,CIVIC ADMIN AND HOSPITALITY,RC210,OTHER MINOR SUPPLIES SERVICES,5590,2016-04-05,2016-04-04,J W PLANT & CO LIMITED,LEEDS,REDACTED,471*********8223,7399,BUSINESS SERVICES NOT ELSEWHERE CLASSIFIED,64.14,Pound Sterling (826),1,64.14,Debit,74745096096030031983104,2016-05-02,GLOUCESTER CC
Gloucester City Council,23UE,DOCKS COMPLEX - SERVICES,RB100,CLEANING MATERIALS,3600,2016-04-08,2016-04-07,SAINSBURYS SUPERMA,GLOUCESTER QU,REDACTED,471*********8223,5411,GROCERY STORES  SUPERMARKETS,31.88,Pound Sterling (826),1,31.88,Debit,74579156099005977461422,2016-05-02,GLOUCESTER CC
Gloucester City Council,23UE,NORTH WAREHOUSE,RB150,OPERATIONAL EQUIPMENT <5000,5012,2016-04-14,2016-04-13,WWW.FRIDGELAND.CO.UK,INTERNET,REDACTED,471*********8223,5085,INDUSTRIAL SUPPLIES NOT ELSEWHERE CLASSI,622.8,Pound Sterling (826),1,622.8,Debit,74916776105000126721817,2016-05-02,GLOUCESTER CC
Gloucester City Council,23UE,REGISTRATION OF ELECTORS,RS400,FEES FOR SERVICES RECEIVED,5350,2016-04-15,2016-04-14,HOMEBASE LTD 135,GLOUCESTER,REDACTED,471*********8223,5211,LUMBER AND BUILDING MATERIALS STORES,14.4,Pound Sterling (826),1,14.4,Debit,74579156106001675760844,2016-05-02,GLOUCESTER CC
Gloucester City Council,23UE,REGISTRATION OF ELECTORS,RS400,FEES FOR SERVICES RECEIVED,5350,2016-04-15,2016-04-14,B AND Q 1179,GLOUCESTER,REDACTED,471*********8223,5211,LUMBER AND BUILDING MATERIALS STORES,18.7,Pound Sterling (826),1,18.7,Debit,74579156106008676155189,2016-05-02,GLOUCESTER CC
Gloucester City Council,23UE,DOCKS COMPLEX - SERVICES,RB100,CLEANING MATERIALS,3600,2016-04-27,2016-04-26,SAINSBURYS SUPERMA,GLOUCESTER QU,REDACTED,471*********8223,5411,GROCERY STORES  SUPERMARKETS,32.45,Pound Sterling (826),1,32.45,Debit,74579156118006874575568,2016-05-02,GLOUCESTER CC
Gloucester City Council,23UE,CIVIC ADMIN AND HOSPITALITY,RC210,OPERATIONAL EQUIPMENT <5000,5012,2016-04-28,2016-04-27,MOSS - 217,GLOUCESTER,REDACTED,471*********8223,5611,MEN'S AND BOYS' CLOTHING AND ACCESSORIES STORES,99,Pound Sterling (826),1,99,Debit,74019476119992000007866,2016-05-02,GLOUCESTER CC
Gloucester City Council,23UE,HMO LICENCES,HE520,OPERATIONAL EQUIPMENT <5000,5012,2016-04-05,2016-04-04,PEARSON EDUCATION LTD,HARLOW,REDACTED,471*********8476,5192,BOOKS PERIODICALS AND NEWSPAPERS,43,Pound Sterling (826),1,43,Debit,74830506095295342799763,2016-05-02,GLOUCESTER CC
Gloucester City Council,23UE,HMO LICENCES,HE520,OPERATIONAL EQUIPMENT <5000,5012,2016-04-06,2016-04-05,TRAINLINE,03332 022 222,REDACTED,471*********8476,4112,PASSENGER RAILWAYS,86.19,Pound Sterling (826),1,86.19,Debit,74998866096613795649563,2016-05-02,GLOUCESTER CC
Gloucester City Council,23UE,HMO LICENCES,HE520,OPERATIONAL EQUIPMENT <5000,5012,2016-04-06,2016-04-05,TRAINLINE,03332 022 222,REDACTED,471*********8476,4112,PASSENGER RAILWAYS,77.93,Pound Sterling (826),1,77.93,Debit,74998866096613795641669,2016-05-02,GLOUCESTER CC
Gloucester City Council,23UE,CITY MUSEUM CATERING,LM202,OPERATIONAL EQUIPMENT <5000,5012,2016-04-22,2016-04-21,Amazon UK Marketplace,800-279-6620,REDACTED,471*********9991,5942,BOOK STORES,13.98,Pound Sterling (826),1,13.98,Debit,74313226112000094845974,2016-05-02,GLOUCESTER CC
Gloucester City Council,23UE,CITY MUSEUM CATERING,LM202,CATERING PROVISIONS -FOOD,5110,2016-04-27,2016-04-26,BOOKER LIMITED GLOUCESTER,GLOUCESTER,REDACTED,471*********9991,5811,CATERERS,111.97,Pound Sterling (826),1,111.97,Debit,74463666117921170533913,2016-05-02,GLOUCESTER CC
Gloucester City Council,23UE,GUILDHALL BAR AND CAF�,LA210,CATERING PROVISIONS -LIQUOR,5111,2016-04-04,2016-04-01,BOOKER LIMITED GLOUCESTER,GLOUCESTER,REDACTED,471*********2470,5811,CATERERS,41.99,Pound Sterling (826),1,41.99,Debit,74463666092920924457451,2016-05-02,GLOUCESTER CC
Gloucester City Council,23UE,GUILDHALL BAR AND CAF�,LA210,CATERING PROVISIONS -FOOD,5110,2016-04-05,2016-04-04,ICELAND,GLOUCESTER,REDACTED,471*********2470,5411,GROCERY STORES  SUPERMARKETS,5.5,Pound Sterling (826),1,5.5,Debit,74698166096030230865134,2016-05-02,GLOUCESTER CC
Gloucester City Council,23UE,GUILDHALL BAR AND CAF�,LA210,CATERING PROVISIONS -FOOD,5110,2016-04-05,2016-04-04,HOLLAND & BARRETT,GLOUCESTER,REDACTED,471*********2470,5999,MISCELLANEOUS AND RETAIL STORES,5.97,Pound Sterling (826),1,5.97,Debit,74579156096004471985369,2016-05-02,GLOUCESTER CC
Gloucester City Council,23UE,GUILDHALL BAR AND CAF�,LA210,CATERING PROVISIONS -FOOD,5110,2016-04-06,2016-04-05,ASDA SUPERSTORE,GLOUCESTER,REDACTED,471*********2470,5411,GROCERY STORES  SUPERMARKETS,14.53,Pound Sterling (826),1,14.53,Debit,74698176097040199585563,2016-05-02,GLOUCESTER CC
Gloucester City Council,23UE,GUILDHALL BAR AND CAF�,LA210,CATERING PROVISIONS -FOOD,5110,2016-04-07,2016-04-06,ASDA SUPERSTORE,GLOUCESTER,REDACTED,471*********2470,5411,GROCERY STORES  SUPERMARKETS,21.15,Pound Sterling (826),1,21.15,Debit,74698176098050197328246,2016-05-02,GLOUCESTER CC
Gloucester City Council,23UE,GUILDHALL BAR AND CAF�,LA210,CATERING PROVISIONS -FOOD,5110,2016-04-12,2016-04-11,WM MORRISON STORE,575 GLOUCESTE,REDACTED,471*********2470,5411,GROCERY STORES  SUPERMARKETS,5.35,Pound Sterling (826),1,5.35,Debit,74579156103005073073240,2016-05-02,GLOUCESTER CC
Gloucester City Council,23UE,GUILDHALL BAR AND CAF�,LA210,CATERING PROVISIONS -FOOD,5110,2016-04-14,2016-04-13,ALDI,GLOUCESTER,REDACTED,471*********2470,5411,GROCERY STORES  SUPERMARKETS,7.99,Pound Sterling (826),1,7.99,Debit,74019476105495000776254,2016-05-02,GLOUCESTER CC
Gloucester City Council,23UE,GUILDHALL BAR AND CAF�,LA210,CATERING PROVISIONS -FOOD,5110,2016-04-18,2016-04-15,SAINSBURYS SUPERMA,GLOUCESTER QU,REDACTED,471*********2470,5411,GROCERY STORES  SUPERMARKETS,62.8,Pound Sterling (826),1,62.8,Debit,74579156107002873145217,2016-05-02,GLOUCESTER CC
Gloucester City Council,23UE,GUILDHALL BAR AND CAF�,LA210,CATERING PROVISIONS -FOOD,5110,2016-04-19,2016-04-18,BOOKER LIMITED GLOUCESTER,GLOUCESTER,REDACTED,471*********2470,5811,CATERERS,53.78,Pound Sterling (826),1,53.78,Debit,74463666109911097315809,2016-05-02,GLOUCESTER CC
Gloucester City Council,23UE,GUILDHALL BAR AND CAF�,LA210,CATERING PROVISIONS -FOOD,5110,2016-04-20,2016-04-19,ASDA SUPERSTORE,GLOUCESTER,REDACTED,471*********2470,5411,GROCERY STORES  SUPERMARKETS,10.15,Pound Sterling (826),1,10.15,Debit,74698176111040166366429,2016-05-02,GLOUCESTER CC
Gloucester City Council,23UE,CITY MUSEUM CATERING,LM202,CATERING PROVISIONS -FOOD,5110,2016-04-21,2016-04-20,ASDA SUPERSTORE,GLOUCESTER,REDACTED,471*********2470,5411,GROCERY STORES  SUPERMARKETS,27.2,Pound Sterling (826),1,27.2,Debit,74698176112050197664873,2016-05-02,GLOUCESTER CC
Gloucester City Council,23UE,GUILDHALL BAR AND CAF�,LA210,CATERING PROVISIONS -FOOD,5110,2016-04-26,2016-04-25,WM MORRISON STORE,575 GLOUCESTE,REDACTED,471*********2470,5411,GROCERY STORES  SUPERMARKETS,10.48,Pound Sterling (826),1,10.48,Debit,74579156117008073731555,2016-05-02,GLOUCESTER CC
Gloucester City Council,23UE,GUILDHALL BAR AND CAF�,LA210,CATERING PROVISIONS -FOOD,5110,2016-04-28,2016-04-27,ALDI,GLOUCESTER,REDACTED,471*********2470,5411,GROCERY STORES  SUPERMARKETS,13.15,Pound Sterling (826),1,13.15,Debit,74019476119495000795068,2016-05-02,GLOUCESTER CC
Gloucester City Council,23UE,HOUSING STRATEGY & ENABLING,CH110,PUBLIC TRANSPORTATION,4061,2016-04-11,2016-04-08,TRAINLINE,RAIL TICKETS,REDACTED,471*********4841,4112,PASSENGER RAILWAYS,47.33,Pound Sterling (826),1,47.33,Debit,74998866099614872117745,2016-05-02,GLOUCESTER CC
Gloucester City Council,23UE,POLLUTION CONTROL,HE300,PUBLIC TRANSPORTATION,4061,2016-04-12,2016-04-11,TRAINLINE,RAIL TICKETS,REDACTED,471*********4841,4112,PASSENGER RAILWAYS,73.54,Pound Sterling (826),1,73.54,Debit,74998866102614936999554,2016-05-02,GLOUCESTER CC
Gloucester City Council,23UE,POLLUTION CONTROL,HE300,PUBLIC TRANSPORTATION,4061,2016-04-19,2016-04-18,TRAINLINE,RAIL TICKETS,REDACTED,471*********4841,4112,PASSENGER RAILWAYS,145.55,Pound Sterling (826),1,145.55,Debit,74998866109615136426127,2016-05-02,GLOUCESTER CC
Gloucester City Council,23UE,MEMBERS SUPPORT,RC300,PUBLIC TRANSPORTATION,4061,2016-04-20,2016-04-19,TRAINLINE,RAIL TICKETS,REDACTED,471*********4841,4112,PASSENGER RAILWAYS,172.38,Pound Sterling (826),1,172.38,Debit,74998866110615172020914,2016-05-02,GLOUCESTER CC
Gloucester City Council,23UE,HEAD OF REGENERATION & ECONOMIC DEVELOPMENT,GO102,PUBLIC TRANSPORTATION,4061,2016-04-20,2016-04-19,TRAINLINE,RAIL TICKETS,REDACTED,471*********4841,4112,PASSENGER RAILWAYS,65.89,Pound Sterling (826),1,65.89,Debit,74998866110615172022811,2016-05-02,GLOUCESTER CC
Gloucester City Council,23UE,GUILDHALL EVENTS,LA200,FEES FOR SERVICES RECEIVED,5350,2016-04-04,2016-04-01,MIPERMIT PARKING-DOM,INTERNET,REDACTED,471*********6962,7523,AUTOMOBILE PARKING LOTS AND GARAGES,10,Pound Sterling (826),1,10,Debit,74745106093020092322169,2016-05-02,GLOUCESTER CC
Gloucester City Council,23UE,GUILDHALL CINEMA,LA202,ADVERTISING AND PUBLICITY,5702,2016-04-04,2016-04-01,WWW.INSTANTPRINT.C,01709 382202,REDACTED,471*********6962,7338,QUICK-COPY AND REPRODUCTION SERVICES,28.99,Pound Sterling (826),1,28.99,Debit,74579156093001978342113,2016-05-02,GLOUCESTER CC
Gloucester City Council,23UE,GLOUCESTER GUILDHALL,LA100,GENERAL REPAIR/MAINT BUILDINGS,3000,2016-04-06,2016-04-05,WILKO RETAIL LIMIT,GLOUCESTER 14,REDACTED,471*********6962,5722,HOUSEHOLD APPLIANCE STORES,27.72,Pound Sterling (826),1,27.72,Debit,74579156097004470869118,2016-05-02,GLOUCESTER CC
Gloucester City Council,23UE,GUILDHALL EVENTS,LA200,FEES FOR SERVICES RECEIVED,5350,2016-04-15,2016-04-14,MIPERMIT PARKING-DOM,INTERNET,REDACTED,471*********6962,7523,AUTOMOBILE PARKING LOTS AND GARAGES,10,Pound Sterling (826),1,10,Debit,74745106106010084244088,2016-05-02,GLOUCESTER CC
Gloucester City Council,23UE,GUILDHALL EVENTS,LA200,FEES FOR SERVICES RECEIVED,5350,2016-04-18,2016-04-15,MIPERMIT PARKING-DOM,INTERNET,REDACTED,471*********6962,7523,AUTOMOBILE PARKING LOTS AND GARAGES,10,Pound Sterling (826),1,10,Debit,74745106107020091200220,2016-05-02,GLOUCESTER CC
Gloucester City Council,23UE,GUILDHALL EVENTS,LA200,ADVERTISING AND PUBLICITY,5702,2016-04-20,2016-04-19,WWW.INSTANTPRINT.C,01709 382202,REDACTED,471*********6962,7338,QUICK-COPY AND REPRODUCTION SERVICES,30.99,Pound Sterling (826),1,30.99,Debit,74579156111004775556024,2016-05-02,GLOUCESTER CC
Gloucester City Council,23UE,GLOUCESTER GUILDHALL,LA100,GENERAL REPAIR/MAINT BUILDINGS,3000,2016-04-21,2016-04-20,ARGOS LTD,GLOUCESTER,REDACTED,471*********6962,5310,DISCOUNT STORES,9.99,Pound Sterling (826),1,9.99,Debit,74579156112009370608103,2016-05-02,GLOUCESTER CC
Gloucester City Council,23UE,GLOUCESTER GUILDHALL,LA100,MAINTENANCE OF EQUIPMENT,5030,2016-04-25,2016-04-22,TESCO STORE 2581,GLOUCESTER,REDACTED,471*********6962,5411,GROCERY STORES  SUPERMARKETS,6,Pound Sterling (826),1,6,Debit,74697056114070178922341,2016-05-02,GLOUCESTER CC
Gloucester City Council,23UE,BLACKFRIARS,LA609,FEES FOR SERVICES RECEIVED,5350,2016-04-25,2016-04-22,ARGOS LTD,GLOUCESTER,REDACTED,471*********6962,5310,DISCOUNT STORES,16.99,Pound Sterling (826),1,16.99,Debit,74579156114009971603923,2016-05-02,GLOUCESTER CC
Gloucester City Council,23UE,GLOUCESTER GUILDHALL,LA100,STATIONERY,5302,2016-04-29,2016-04-28,STAPLES UK,GLOUCESTER 05,REDACTED,471*********6962,5943,STATIONERY  OFFICE AND SCHOOL SUPPLY STO,7.99,Pound Sterling (826),1,7.99,Debit,74579156120009177402510,2016-05-02,GLOUCESTER CC
Gloucester City Council,23UE,BLACKFRIARS,LA609,FEES FOR SERVICES RECEIVED,5350,2016-04-29,2016-04-28,ARGOS LTD,GLOUCESTER,REDACTED,471*********6962,5310,DISCOUNT STORES,76.99,Pound Sterling (826),1,76.99,Debit,74579156120008972346336,2016-05-02,GLOUCESTER CC
Gloucester City Council,23UE,GUILDHALL EVENTS,LA200,FEES FOR SERVICES RECEIVED,5350,2016-04-29,2016-04-28,TRAVELODGE WEBSITE,RESERVATION,REDACTED,471*********6962,3615,TRAVELODGE,98,Pound Sterling (826),1,98,Debit,74424716119298101101717,2016-05-02,GLOUCESTER CC
Gloucester City Council,23UE,GUILDHALL EVENTS,LA200,FEES FOR SERVICES RECEIVED,5350,2016-04-29,2016-04-28,WWW.REDSPOTTEDHANK,ATOS WEB TIS,REDACTED,471*********6962,4112,PASSENGER RAILWAYS,25.8,Pound Sterling (826),1,25.8,Debit,74830506119160365450904,2016-05-02,GLOUCESTER CC
Gloucester City Council,23UE,GUILDHALL EVENTS,LA200,FEES FOR SERVICES RECEIVED,5350,2016-04-29,2016-04-28,EXPEDIA 111817108252,EXPEDIA CO UK,REDACTED,471*********6962,4722,TRAVEL AGENCIES,5,Pound Sterling (826),1,5,Debit,74929326120033340027802,2016-05-02,GLOUCESTER CC
Gloucester City Council,23UE,GUILDHALL EVENTS,LA200,FEES FOR SERVICES RECEIVED,5350,2016-04-29,2016-04-28,EXPEDIA 111817108252,EXPEDIA CO UK,REDACTED,471*********6962,4722,TRAVEL AGENCIES,6,Pound Sterling (826),1,6,Debit,74929326120033340027836,2016-05-02,GLOUCESTER CC
Gloucester City Council,23UE,GUILDHALL EVENTS,LA200,FEES FOR SERVICES RECEIVED,5350,2016-05-02,2016-04-28,TRAINLINE,03332 022 222,REDACTED,471*********6962,4112,PASSENGER RAILWAYS,50.49,Pound Sterling (826),1,50.49,Debit,74998866120617503440611,2016-05-02,GLOUCESTER CC
Gloucester City Council,23UE,GUILDHALL EVENTS,LA200,FEES FOR SERVICES RECEIVED,5350,2016-05-02,2016-04-28,TRAINLINE,03332 022 222,REDACTED,471*********6962,4112,PASSENGER RAILWAYS,56.61,Pound Sterling (826),1,56.61,Debit,74998866120617503444597,2016-05-02,GLOUCESTER CC
Gloucester City Council,23UE,GUILDHALL EVENTS,LA200,FEES FOR SERVICES RECEIVED,5350,2016-05-02,2016-04-28,TRAINLINE,03332 022 222,REDACTED,471*********6962,4112,PASSENGER RAILWAYS,50.49,Pound Sterling (826),1,50.49,Debit,74998866120617503447558,2016-05-02,GLOUCESTER CC
Gloucester City Council,23UE,GUILDHALL EVENTS,LA200,FEES FOR SERVICES RECEIVED,5350,2016-05-02,2016-04-28,KLM UK 0741742783947,GP AMSTELVEEN,REDACTED,471*********6962,3010,ROYAL DUTCH AIRLINES (KLM),131.03,Pound Sterling (826),1,131.03,Debit,74595196119898797667042,2016-05-02,GLOUCESTER CC
Gloucester City Council,23UE,GUILDHALL EVENTS,LA200,ADVERTISING AND PUBLICITY,5702,2016-05-02,2016-04-30,FACEBOOK 6DPM396E72,www.fb.me/ads,REDACTED,471*********6962,7311,ADVERTISING SERVICES,51.62,Pound Sterling (826),1,51.62,Debit,74987506121324110461536,2016-05-02,GLOUCESTER CC
Gloucester City Council,23UE,BUSINESS PLANNING & PERFORMANCE,RL500,FEES FOR SERVICES RECEIVED,5350,2016-04-04,2016-04-01,WH SMITH,GLOUCESTER,REDACTED,471*********3318,5994,NEWS DEALERS AND NEWSSTANDS,28.98,Pound Sterling (826),1,28.98,Debit,74697056093020112873766,2016-05-02,GLOUCESTER CC
Gloucester City Council,23UE,BUSINESS PLANNING & PERFORMANCE,RL500,FEES FOR SERVICES RECEIVED,5350,2016-04-08,2016-04-07,TRAVELODGE WEBSITE,RESERVATION,REDACTED,471*********3318,3615,TRAVELODGE,87,Pound Sterling (826),1,87,Debit,74424716098298162350646,2016-05-02,GLOUCESTER CC
Gloucester City Council,23UE,BUSINESS TRANSFORMATION & TECHNOLOGY,RT700,COMPUTER CONSUMABLES,5422,2016-04-08,2016-04-07,WWW.THEBARCODEWAREHOUS,INTERNET,REDACTED,471*********3318,5722,HOUSEHOLD APPLIANCE STORES,40.84,Pound Sterling (826),1,40.84,Debit,74745096099060126481794,2016-05-02,GLOUCESTER CC
Gloucester City Council,23UE,BUSINESS TRANSFORMATION & TECHNOLOGY,RT700,COMPUTER CONSUMABLES,5422,2016-04-14,2016-04-12,EBUYER (UK) LTD,SHEFFIELD,REDACTED,471*********3318,5722,HOUSEHOLD APPLIANCE STORES,39.91,Pound Sterling (826),1,39.91,Debit,74678586105000062188410,2016-05-02,GLOUCESTER CC
Gloucester City Council,23UE,BUSINESS PLANNING & PERFORMANCE,RL500,FEES FOR SERVICES RECEIVED,5350,2016-04-18,2016-04-14,PARKING PAYMENT: 21,POOLE,REDACTED,471*********3318,7523,AUTOMOBILE PARKING LOTS AND GARAGES,6,Pound Sterling (826),1,6,Debit,74019476106934000440627,2016-05-02,GLOUCESTER CC
Gloucester City Council,23UE,BUSINESS PLANNING & PERFORMANCE,RL500,FEES FOR SERVICES RECEIVED,5350,2016-04-15,2016-04-14,Amazon UK Marketplace,800-279-6620,REDACTED,471*********3318,5999,MISCELLANEOUS AND RETAIL STORES,25.8,Pound Sterling (826),1,25.8,Debit,74313226105000139074894,2016-05-02,GLOUCESTER CC
Gloucester City Council,23UE,BUSINESS PLANNING & PERFORMANCE,RL500,STATIONERY,5302,2016-04-15,2016-04-14,Amazon UK Marketplace,800-279-6620,REDACTED,471*********3318,5942,BOOK STORES,20.16,Pound Sterling (826),1,20.16,Debit,74313226105000168132340,2016-05-02,GLOUCESTER CC
Gloucester City Council,23UE,BUSINESS PLANNING & PERFORMANCE,RL500,FEES FOR SERVICES RECEIVED,5350,2016-04-18,2016-04-15,TEXACO TAKEABREAK,WR80BZ 490534,REDACTED,471*********3318,5541,SERVICE STATIONS,37.89,Pound Sterling (826),1,37.89,Debit,74579156107002670940216,2016-05-02,GLOUCESTER CC
Gloucester City Council,23UE,BUSINESS PLANNING & PERFORMANCE,RL500,FEES FOR SERVICES RECEIVED,5350,2016-04-18,2016-04-15,PARKING PAYMENT: 21,POOLE,REDACTED,471*********3318,7523,AUTOMOBILE PARKING LOTS AND GARAGES,6,Pound Sterling (826),1,6,Debit,74019476107934000463230,2016-05-02,GLOUCESTER CC
Gloucester City Council,23UE,BUSINESS PLANNING & PERFORMANCE,RL500,FEES FOR SERVICES RECEIVED,5350,2016-04-19,2016-04-18,Amazon UK Marketplace,800-279-6620,REDACTED,471*********3318,5999,MISCELLANEOUS AND RETAIL STORES,-25.8,Pound Sterling (826),1,-25.8,Credit,74313226109000561987932,2016-05-02,GLOUCESTER CC
Gloucester City Council,23UE,BUSINESS TRANSFORMATION & TECHNOLOGY,RT700,COMPUTER CONSUMABLES,5422,2016-04-20,2016-04-19,WWW.CABLEMONKEY.CO.UK,INTERNET,REDACTED,471*********3318,5065,ELECTRICAL PARTS AND EQUIPMENT,168,Pound Sterling (826),1,168,Debit,74678586111040070907965,2016-05-02,GLOUCESTER CC
Gloucester City Council,23UE,BUSINESS TRANSFORMATION & TECHNOLOGY,RT700,COMPUTER CONSUMABLES,5422,2016-04-25,2016-04-24,Amazon UK Marketplace,800-279-6620,REDACTED,471*********3318,5999,MISCELLANEOUS AND RETAIL STORES,194.94,Pound Sterling (826),1,194.94,Debit,74313226115000597116888,2016-05-02,GLOUCESTER CC
Gloucester City Council,23UE,BUSINESS TRANSFORMATION & TECHNOLOGY,RT700,COMPUTER CONSUMABLES,5422,2016-04-28,2016-04-27,WWW.CDLMICRO.CO.UK,OLDHAM,REDACTED,471*********3318,5045,COMPUTERS COMPUTER PERIPHERAL EQUIPMENT  SOFTWARE,88.87,Pound Sterling (826),1,88.87,Debit,74085326119465000119656,2016-05-02,GLOUCESTER CC
Gloucester City Council,23UE,CLIENT REVENUES & BENEFITS CONTRACT,RT240,COURT FEES,5358,2016-04-04,2016-04-01,HMCOURTS-SERVICE.G,1452420100,REDACTED,471*********5409,9222,FINES,4380,Pound Sterling (826),1,4380,Debit,74579156093004474002561,2016-05-02,GLOUCESTER CC
Gloucester City Council,23UE,FINANCIAL SERVICES,RT200,VOCATIONAL TRAINING,2970,2016-04-07,2016-04-06,GWR WEBSALES ECOM,SWINDON,REDACTED,471*********5409,4112,PASSENGER RAILWAYS,67.1,Pound Sterling (826),1,67.1,Debit,74424716097160363661141,2016-05-02,GLOUCESTER CC
Gloucester City Council,23UE,BUSINESS TRANSFORMATION & TECHNOLOGY,RT700,COMPUTER HARDWARE MAINTENANCE,5426,2016-04-13,2016-04-12,APPLE ONLINE STORE GBP,0845-600-1683,REDACTED,471*********5409,5732,ELECTRONIC SALES,1656,Pound Sterling (826),1,1656,Debit,74313226103000246398253,2016-05-02,GLOUCESTER CC
Gloucester City Council,23UE,NMS CONTRACT,HI102,ADDITIONAL NON-TENDER ITEMS,6973,2016-04-19,2016-04-18,WWW.LETSRECYCLE.COM,INTERNET,REDACTED,471*********5409,7311,ADVERTISING SERVICES,1153.78,Pound Sterling (826),1,1153.78,Debit,74916776110030077494836,2016-05-02,GLOUCESTER CC
Gloucester City Council,23UE,COUNTRYSIDE UNIT,LP201,VEHICLE LICENCES,4015,2016-04-20,2016-04-19,DVLA VEHICLE TAX,0300 1234321,REDACTED,471*********5409,9399,GOVERNMENT SERVICES NOT ELSEWHERE CLASSIFIED,297.5,Pound Sterling (826),1,297.5,Debit,74579156111005374772102,2016-05-02,GLOUCESTER CC
Gloucester City Council,23UE,FINANCIAL SERVICES,RT200,FEES FOR SERVICES RECEIVED,5350,2016-04-21,2016-04-20,Amazon UK Marketplace,800-279-6620,REDACTED,471*********5409,5942,BOOK STORES,144.38,Pound Sterling (826),1,144.38,Debit,74313226111000396461638,2016-05-02,GLOUCESTER CC
Gloucester City Council,23UE,BUSINESS TRANSFORMATION & TECHNOLOGY,RT700,COMPUTER HARDWARE MAINTENANCE,5426,2016-04-28,2016-04-27,APPLE ONLINE STORE GBP,0845-600-1683,REDACTED,471*********5409,5732,ELECTRONIC SALES,414,Pound Sterling (826),1,414,Debit,74313226118000374008321,2016-05-02,GLOUCESTER CC
